[Event "ONJK 2024 ABC"]
[Site "Velp, Netherlands"]
[Date "2024.08.03"]
[Round "3.7"]
[White "Henckens, Elof"]
[Black "Blok, Xaveer"]
[Result "1/2-1/2"]
[TimeControl "90 minutes + 30 seconds"]
[WhiteElo "1707"]
[BlackElo "1885"]

1. d4 {[%clk 01:30:59]} {[%emt 00:00:01]} d5 {[%clk 01:30:54]} {[%emt
00:00:05]} 2. Bf4 {[%clk 01:31:25]} {[%emt 00:00:04]} c5 {[%clk 01:31:18]}
{[%emt 00:00:07]} 3. e3 {[%clk 01:31:41]} {[%emt 00:00:14]} Nc6 {[%clk
01:31:43]} {[%emt 00:00:05]} 4. Nf3 {[%clk 01:31:46]} {[%emt 00:00:25]} e6
{[%clk 01:31:53]} {[%emt 00:00:20]} 5. c3 {[%clk 01:31:50]} {[%emt 00:00:26]}
Nf6 {[%clk 01:32:10]} {[%emt 00:00:12]} 6. Nbd2 {[%clk 01:32:12]} {[%emt
00:00:08]} Bd6 {[%clk 01:32:26]} {[%emt 00:00:15]} 7. Bg3 {[%clk 01:32:34]}
{[%emt 00:00:08]} O-O {[%clk 01:32:45]} {[%emt 00:00:11]} 8. Bd3 {[%clk
01:32:41]} {[%emt 00:00:23]} b6 {[%clk 01:32:56]} {[%emt 00:00:20]} 9. Ne5
{[%clk 01:30:44]} {[%emt 00:02:26]} Bb7 {[%clk 01:32:55]} {[%emt 00:00:32]} 10.
Ndf3 {[%clk 01:30:00]} {[%emt 00:01:14]} Rc8 {[%clk 01:26:49]} {[%emt
00:06:36]} 11. h4 {[%clk 01:28:26]} {[%emt 00:02:00]} Qc7 {[%clk 01:25:02]}
{[%emt 00:02:21]} 12. Bf4 {[%clk 01:24:26]} {[%emt 00:04:30]} Nd7 {[%clk
01:23:26]} {[%emt 00:02:06]} 13. Nxd7 {[%clk 01:23:16]} {[%emt 00:01:39]} Qxd7
{[%clk 01:23:42]} {[%emt 00:00:14]} 14. Ne5 {[%clk 01:05:24]} {[%emt 00:18:23]}
Nxe5 {[%clk 01:19:04]} {[%emt 00:05:07]} 15. dxe5 {[%clk 01:01:27]} {[%emt
00:04:27]} Bc7 {[%clk 01:14:06]} {[%emt 00:05:28]} 16. Qg4 {[%clk 00:59:19]}
{[%emt 00:02:37]} f6 {[%clk 01:11:13]} {[%emt 00:03:23]} 17. exf6 {[%clk
00:53:52]} {[%emt 00:05:57]} Rxf6 {[%clk 01:08:40]} {[%emt 00:03:03]} 18. Bg5
{[%clk 00:50:54]} {[%emt 00:03:28]} Rf7 {[%clk 01:08:57]} {[%emt 00:00:14]} 19.
h5 {[%clk 00:48:23]} {[%emt 00:03:00]} e5 {[%clk 01:04:35]} {[%emt 00:04:52]}
20. Qxd7 {[%clk 00:46:54]} {[%emt 00:01:58]} Rxd7 {[%clk 01:04:32]} {[%emt
00:00:34]} 21. Bf5 {[%clk 00:47:17]} {[%emt 00:00:07]} Rf7 {[%clk 01:03:39]}
{[%emt 00:01:24]} 22. Bxc8 {[%clk 00:46:59]} {[%emt 00:00:47]} Bxc8 {[%clk
01:04:04]} {[%emt 00:00:04]} 23. Bh4 {[%clk 00:44:58]} {[%emt 00:02:31]} e4
{[%clk 01:03:42]} {[%emt 00:00:54]} 24. O-O-O {[%clk 00:44:21]} {[%emt
00:01:06]} Rf5 {[%clk 01:03:41]} {[%emt 00:00:31]} 25. g4 {[%clk 00:43:16]}
{[%emt 00:01:34]} Rf8 {[%clk 01:03:45]} {[%emt 00:00:27]} 26. Rhg1 {[%clk
00:43:10]} {[%emt 00:00:35]} Be6 {[%clk 01:03:50]} {[%emt 00:00:26]} 27. Rdf1
{[%clk 00:41:07]} {[%emt 00:02:31]} d4 {[%clk 01:02:34]} {[%emt 00:01:48]} 28.
exd4 {[%clk 00:39:35]} {[%emt 00:02:02]} cxd4 {[%clk 01:02:49]} {[%emt
00:00:15]} 29. cxd4 {[%clk 00:39:37]} {[%emt 00:00:28]} Bxa2 {[%clk 01:03:09]}
{[%emt 00:00:11]} 30. Bg3 {[%clk 00:39:02]} {[%emt 00:01:04]} Bd8 {[%clk
01:01:39]} {[%emt 00:02:01]} 31. Kc2 {[%clk 00:38:08]} {[%emt 00:01:23]} Rf3
{[%clk 01:00:34]} {[%emt 00:01:35]} 32. Re1 {[%clk 00:37:00]} {[%emt 00:01:37]}
Bc4 {[%clk 01:00:46]} {[%emt 00:00:19]} 33. Re3 {[%clk 00:35:41]} {[%emt
00:01:48]} Bd3+ {[%clk 01:01:10]} {[%emt 00:00:07]} 34. Kd2 {[%clk 00:35:43]}
{[%emt 00:00:28]} Bg5 {[%clk 01:01:07]} {[%emt 00:00:34]} 35. Rge1 {[%clk
00:32:22]} {[%emt 00:01:58]} 1/2-1/2

[Event "ONJK 2024 ABC"]
[Site "Velp, Netherlands"]
[Date "2024.08.03"]
[Round "3.8"]
[White "Musabayev, Maxim"]
[Black "Sapulette, Jay-Giani"]
[Result "1-0"]
[TimeControl "90 minutes + 30 seconds"]
[WhiteElo "1824"]
[BlackElo "1746"]

1. e4 {[%clk 01:30:58]} {[%emt 00:00:02]} c5 {[%clk 01:30:58]} {[%emt
00:00:03]} 2. Nf3 {[%clk 01:31:24]} {[%emt 00:00:04]} d6 {[%clk 01:31:25]}
{[%emt 00:00:03]} 3. d4 {[%clk 01:31:50]} {[%emt 00:00:04]} cxd4 {[%clk
01:31:50]} {[%emt 00:00:05]} 4. Nxd4 {[%clk 01:32:12]} {[%emt 00:00:07]} Nf6
{[%clk 01:32:11]} {[%emt 00:00:10]} 5. Nc3 {[%clk 01:32:24]} {[%emt 00:00:17]}
g6 {[%clk 01:32:38]} {[%emt 00:00:03]} 6. Be3 {[%clk 01:32:35]} {[%emt
00:00:19]} Bg7 {[%clk 01:33:03]} {[%emt 00:00:05]} 7. f3 {[%clk 01:32:57]}
{[%emt 00:00:07]} Nc6 {[%clk 01:33:26]} {[%emt 00:00:08]} 8. Qd2 {[%clk
01:33:21]} {[%emt 00:00:06]} O-O {[%clk 01:33:33]} {[%emt 00:00:22]} 9. O-O-O
{[%clk 01:33:37]} {[%emt 00:00:13]} a6 {[%clk 01:31:26]} {[%emt 00:02:38]} 10.
g4 {[%clk 01:33:48]} {[%emt 00:00:19]} Bd7 {[%clk 01:27:39]} {[%emt 00:04:17]}
11. Be2 {[%clk 01:33:18]} {[%emt 00:00:59]} b5 {[%clk 01:22:03]} {[%emt
00:06:06]} 12. h4 {[%clk 01:32:52]} {[%emt 00:00:56]} h5 {[%clk 01:19:38]}
{[%emt 00:02:55]} 13. Rdg1 {[%clk 01:32:13]} {[%emt 00:01:10]} Nxd4 {[%clk
00:51:28]} {[%emt 00:28:40]} 14. Bxd4 {[%clk 01:32:22]} {[%emt 00:00:20]} e5
{[%clk 00:48:46]} {[%emt 00:03:13]} 15. Be3 {[%clk 01:32:06]} {[%emt 00:00:46]}
Be6 {[%clk 00:48:47]} {[%emt 00:00:29]} 16. Bg5 {[%clk 01:31:23]} {[%emt
00:01:13]} Kh7 {[%clk 00:41:36]} {[%emt 00:07:40]} 17. gxh5 {[%clk 01:28:30]}
{[%emt 00:03:22]} gxh5 {[%clk 00:41:51]} {[%emt 00:00:16]} 18. f4 {[%clk
01:28:11]} {[%emt 00:00:50]} b4 {[%clk 00:41:13]} {[%emt 00:01:08]} 19. Nd1
{[%clk 01:25:15]} {[%emt 00:03:25]} Rc8 {[%clk 00:34:29]} {[%emt 00:07:14]} 20.
b3 {[%clk 01:08:32]} {[%emt 00:17:14]} Bxb3 {[%clk 00:22:22]} {[%emt 00:12:37]}
21. axb3 {[%clk 01:06:00]} {[%emt 00:03:02]} Qa5 {[%clk 00:22:44]} {[%emt
00:00:08]} 22. Qd3 {[%clk 01:05:38]} {[%emt 00:00:52]} Rc3 {[%clk 00:07:46]}
{[%emt 00:15:28]} 23. Nxc3 {[%clk 00:59:16]} {[%emt 00:06:52]} bxc3 {[%clk
00:08:08]} {[%emt 00:00:07]} 24. Qxa6 {[%clk 00:59:31]} {[%emt 00:00:15]} Qxa6
{[%clk 00:08:10]} {[%emt 00:00:29]} 25. Bxa6 {[%clk 00:59:54]} {[%emt
00:00:07]} Ra8 {[%clk 00:08:33]} {[%emt 00:00:07]} 26. Bxf6 {[%clk 00:56:58]}
{[%emt 00:03:25]} Bxf6 {[%clk 00:08:59]} {[%emt 00:00:05]} 27. f5 {[%clk
00:55:54]} {[%emt 00:01:34]} Rxa6 {[%clk 00:09:13]} {[%emt 00:00:16]} 28. Kb1
{[%clk 00:51:00]} {[%emt 00:05:24]} Bd8 {[%clk 00:06:39]} {[%emt 00:03:04]} 29.
Rg3 {[%clk 00:50:58]} {[%emt 00:00:32]} Bb6 {[%clk 00:06:55]} {[%emt 00:00:15]}
30. Rd1 {[%clk 00:49:31]} {[%emt 00:01:56]} Bf2 {[%clk 00:06:13]} {[%emt
00:01:12]} 31. Rxc3 {[%clk 00:48:50]} {[%emt 00:01:10]} Bd4 {[%clk 00:06:22]}
{[%emt 00:00:21]} 32. Rxd4 {[%clk 00:49:12]} {[%emt 00:00:08]} exd4 {[%clk
00:06:50]} {[%emt 00:00:03]} 33. Rd3 {[%clk 00:49:26]} {[%emt 00:00:16]} Kg7
{[%clk 00:06:56]} {[%emt 00:00:24]} 34. Rxd4 {[%clk 00:49:52]} {[%emt
00:00:03]} Kf6 {[%clk 00:07:23]} {[%emt 00:00:03]} 35. Rd5 {[%clk 00:49:27]}
{[%emt 00:00:55]} Ke7 {[%clk 00:07:21]} {[%emt 00:00:32]} 36. Kb2 {[%clk
00:49:13]} {[%emt 00:00:45]} Ra8 {[%clk 00:07:40]} {[%emt 00:00:11]} 37. Kc3
{[%clk 00:47:49]} {[%emt 00:01:53]} Rg8 {[%clk 00:08:03]} {[%emt 00:00:07]} 38.
f6+ {[%clk 00:46:23]} {[%emt 00:01:56]} Kxf6 {[%clk 00:08:27]} {[%emt
00:00:06]} 39. Rxh5 {[%clk 00:46:49]} {[%emt 00:00:04]} Rg4 {[%clk 00:08:39]}
{[%emt 00:00:19]} 40. Kd4 {[%clk 00:46:59]} {[%emt 00:00:19]} Ke6 {[%clk
00:08:47]} {[%emt 00:00:22]} 41. b4 {[%clk 00:45:44]} {[%emt 00:01:45]} f5
{[%clk 00:08:10]} {[%emt 00:01:08]} 42. Rxf5 {[%clk 00:45:35]} {[%emt
00:00:39]} Rxh4 {[%clk 00:08:35]} {[%emt 00:00:04]} 43. b5 {[%clk 00:43:09]}
{[%emt 00:02:56]} Kd7 {[%clk 00:08:44]} {[%emt 00:00:21]} 44. Rf7+ {[%clk
00:40:29]} {[%emt 00:03:11]} Kc8 {[%clk 00:09:05]} {[%emt 00:00:08]} 45. Kd5
{[%clk 00:39:30]} {[%emt 00:01:29]} Rh2 {[%clk 00:09:04]} {[%emt 00:00:30]} 46.
c4 {[%clk 00:38:01]} {[%emt 00:01:59]} Rc2 {[%clk 00:09:13]} {[%emt 00:00:21]}
47. b6 {[%clk 00:37:29]} {[%emt 00:01:02]} Kb8 {[%clk 00:09:26]} {[%emt
00:00:16]} 48. Rd7 {[%clk 00:35:43]} {[%emt 00:02:17]} Kc8 {[%clk 00:09:05]}
{[%emt 00:00:51]} 49. Rc7+ {[%clk 00:35:08]} {[%emt 00:01:05]} Kb8 {[%clk
00:09:23]} {[%emt 00:00:13]} 50. Kxd6 {[%clk 00:35:16]} {[%emt 00:00:22]} Rb2
{[%clk 00:09:36]} {[%emt 00:00:18]} 51. c5 {[%clk 00:34:23]} {[%emt 00:01:22]}
Ka8 {[%clk 00:09:53]} {[%emt 00:00:13]} 52. Kc6 {[%clk 00:34:00]} {[%emt
00:00:53]} Kb8 {[%clk 00:10:12]} {[%emt 00:00:11]} 53. Re7 {[%clk 00:34:07]}
{[%emt 00:00:22]} 1-0

[Event "ONJK 2024 ABC"]
[Site "Velp, Netherlands"]
[Date "2024.08.03"]
[Round "3.9"]
[White "Balde, Esko"]
[Black "Frederiks, Jesse"]
[Result "1-0"]
[TimeControl "90 minutes + 30 seconds"]
[WhiteElo "1637"]
[BlackElo "1757"]

1. d4 {[%clk 01:30:59]} Nf6 {[%clk 01:30:51]} {[%emt 00:00:10]} 2. c4 {[%clk
01:31:26]} {[%emt 00:00:04]} g6 {[%clk 01:31:16]} {[%emt 00:00:03]} 3. g3
{[%clk 01:31:47]} {[%emt 00:00:09]} Bg7 {[%clk 01:31:40]} {[%emt 00:00:06]} 4.
Bg2 {[%clk 01:32:11]} {[%emt 00:00:07]} O-O {[%clk 01:30:20]} {[%emt 00:01:49]}
5. Nc3 {[%clk 01:32:38]} {[%emt 00:00:04]} d6 {[%clk 01:30:38]} {[%emt
00:00:12]} 6. Nf3 {[%clk 01:33:03]} {[%emt 00:00:05]} Nbd7 {[%clk 01:30:11]}
{[%emt 00:00:57]} 7. O-O {[%clk 01:33:26]} {[%emt 00:00:07]} e5 {[%clk
01:28:47]} {[%emt 00:01:53]} 8. e4 {[%clk 01:33:32]} {[%emt 00:00:24]} a5
{[%clk 01:26:45]} {[%emt 00:02:32]} 9. h3 {[%clk 01:28:42]} {[%emt 00:05:21]}
exd4 {[%clk 01:19:24]} {[%emt 00:07:50]} 10. Nxd4 {[%clk 01:28:39]} {[%emt
00:00:33]} Nc5 {[%clk 01:19:00]} {[%emt 00:00:54]} 11. Nb3 {[%clk 01:20:58]}
{[%emt 00:08:12]} Nxb3 {[%clk 01:16:36]} {[%emt 00:02:54]} 12. axb3 {[%clk
01:18:59]} {[%emt 00:02:28]} Be6 {[%clk 01:14:54]} {[%emt 00:02:12]} 13. Qc2
{[%clk 01:12:37]} {[%emt 00:06:52]} Nd7 {[%clk 01:09:46]} {[%emt 00:05:39]} 14.
Nd5 {[%clk 01:05:09]} {[%emt 00:07:58]} Bxd5 {[%clk 01:05:01]} {[%emt
00:05:15]} 15. cxd5 {[%clk 01:03:42]} {[%emt 00:01:57]} b6 {[%clk 01:02:08]}
{[%emt 00:03:23]} 16. b4 {[%clk 01:02:22]} {[%emt 00:01:50]} Nf6 {[%clk
00:57:59]} {[%emt 00:04:39]} 17. bxa5 {[%clk 01:01:14]} {[%emt 00:01:37]} bxa5
{[%clk 00:56:06]} {[%emt 00:02:23]} 18. Bd2 {[%clk 01:01:07]} {[%emt 00:00:37]}
a4 {[%clk 00:54:31]} {[%emt 00:02:05]} 19. Rxa4 {[%clk 00:59:51]} {[%emt
00:01:46]} Qd7 {[%clk 00:53:06]} {[%emt 00:01:55]} 20. Rfa1 {[%clk 00:56:45]}
{[%emt 00:03:37]} Rxa4 {[%clk 00:53:10]} {[%emt 00:00:27]} 21. Rxa4 {[%clk
00:57:06]} {[%emt 00:00:09]} Rb8 {[%clk 00:53:15]} {[%emt 00:00:24]} 22. Ra7
{[%clk 00:54:01]} {[%emt 00:03:36]} Ne8 {[%clk 00:53:16]} {[%emt 00:00:29]} 23.
Bc3 {[%clk 00:53:51]} {[%emt 00:00:40]} Bxc3 {[%clk 00:52:29]} {[%emt
00:01:17]} 24. Qxc3 {[%clk 00:51:56]} {[%emt 00:02:25]} Qb5 {[%clk 00:52:15]}
{[%emt 00:00:43]} 25. Ra2 {[%clk 00:37:38]} {[%emt 00:14:48]} Qb4 {[%clk
00:49:49]} {[%emt 00:02:57]} 26. Qxb4 {[%clk 00:28:57]} {[%emt 00:09:11]} Rxb4
{[%clk 00:50:13]} {[%emt 00:00:05]} 27. Kf1 {[%clk 00:28:11]} {[%emt 00:01:17]}
Kf8 {[%clk 00:49:49]} {[%emt 00:00:53]} 28. Ke2 {[%clk 00:26:45]} {[%emt
00:01:57]} Ke7 {[%clk 00:50:10]} {[%emt 00:00:08]} 29. Kd3 {[%clk 00:26:20]}
{[%emt 00:00:55]} Nf6 {[%clk 00:50:12]} {[%emt 00:00:28]} 30. Kc3 {[%clk
00:24:15]} {[%emt 00:02:36]} Rb7 {[%clk 00:50:16]} {[%emt 00:00:24]} 31. e5
{[%clk 00:24:02]} {[%emt 00:00:45]} Nd7 {[%clk 00:49:41]} {[%emt 00:01:04]} 32.
exd6+ {[%clk 00:18:46]} {[%emt 00:05:46]} Kxd6 {[%clk 00:49:46]} {[%emt
00:00:25]} 33. Ra6+ {[%clk 00:17:40]} {[%emt 00:01:37]} Nb6 {[%clk 00:48:51]}
{[%emt 00:01:25]} 34. Bf1 {[%clk 00:16:09]} {[%emt 00:02:00]} Rb8 {[%clk
00:48:25]} {[%emt 00:00:53]} 35. Kd4 {[%clk 00:15:03]} {[%emt 00:01:40]} Re8
{[%clk 00:47:47]} {[%emt 00:01:07]} 36. b3 {[%clk 00:13:27]} {[%emt 00:02:07]}
Re1 {[%clk 00:47:38]} {[%emt 00:00:39]} 37. Bc4 {[%clk 00:13:19]} {[%emt
00:00:38]} Rd1+ {[%clk 00:47:14]} {[%emt 00:00:52]} 38. Kc3 {[%clk 00:12:14]}
{[%emt 00:01:37]} Rh1 {[%clk 00:46:11]} {[%emt 00:01:32]} 39. h4 {[%clk
00:12:04]} {[%emt 00:00:41]} Rh2 {[%clk 00:46:05]} {[%emt 00:00:36]} 40. Ra2
{[%clk 00:12:03]} {[%emt 00:00:31]} f5 {[%clk 00:45:26]} {[%emt 00:01:09]} 41.
Re2 {[%clk 00:11:42]} {[%emt 00:00:51]} Nxd5+ {[%clk 00:45:26]} {[%emt
00:00:30]} 42. Bxd5 {[%clk 00:12:05]} {[%emt 00:00:07]} Kxd5 {[%clk 00:45:51]}
{[%emt 00:00:04]} 43. Rd2+ {[%clk 00:11:38]} {[%emt 00:00:57]} Ke4 {[%clk
00:45:00]} {[%emt 00:01:22]} 44. f3+ {[%clk 00:12:03]} {[%emt 00:00:06]} Kxf3
{[%clk 00:45:03]} {[%emt 00:00:26]} 45. Rxh2 {[%clk 00:12:29]} {[%emt
00:00:04]} Kxg3 {[%clk 00:45:27]} {[%emt 00:00:07]} 46. Rd2 {[%clk 00:12:00]}
{[%emt 00:00:59]} f4 {[%clk 00:45:18]} {[%emt 00:00:39]} 47. Kd3 {[%clk
00:11:53]} {[%emt 00:00:36]} Kxh4 {[%clk 00:45:29]} {[%emt 00:00:19]} 48. Rh2+
{[%clk 00:11:56]} {[%emt 00:00:26]} Kg3 {[%clk 00:45:55]} {[%emt 00:00:05]} 49.
Rxh7 {[%clk 00:11:49]} {[%emt 00:00:37]} g5 {[%clk 00:46:15]} {[%emt 00:00:10]}
50. Rxc7 {[%clk 00:11:18]} {[%emt 00:01:02]} Kf3 {[%clk 00:46:40]} {[%emt
00:00:04]} 51. b4 {[%clk 00:10:09]} {[%emt 00:01:39]} g4 {[%clk 00:47:07]}
{[%emt 00:00:03]} 52. b5 {[%clk 00:09:44]} {[%emt 00:00:55]} g3 {[%clk
00:47:31]} {[%emt 00:00:05]} 53. b6 {[%clk 00:09:30]} {[%emt 00:00:46]} g2
{[%clk 00:48:00]} 54. Rg7 {[%clk 00:09:56]} {[%emt 00:00:03]} Kf2 {[%clk
00:48:20]} {[%emt 00:00:10]} 55. b7 {[%clk 00:10:11]} {[%emt 00:00:16]} f3
{[%clk 00:48:32]} {[%emt 00:00:18]} 56. b8=Q {[%clk 00:10:02]} {[%emt
00:00:39]} Kg1 {[%clk 00:48:51]} {[%emt 00:00:10]} 57. Qb6+ {[%clk 00:09:12]}
{[%emt 00:01:20]} Kf1 {[%clk 00:48:52]} {[%emt 00:00:27]} 58. Qb1+ {[%clk
00:09:30]} {[%emt 00:00:14]} Kf2 {[%clk 00:49:14]} {[%emt 00:00:08]} 59. Kd2
{[%clk 00:09:21]} {[%emt 00:00:39]} g1=Q {[%clk 00:49:24]} {[%emt 00:00:20]} 60.
Qxg1 {[%clk 00:09:10]} {[%emt 00:00:05]} 1-0

[Event "ONJK 2024 ABC"]
[Site "Velp, Netherlands"]
[Date "2024.08.03"]
[Round "3.10"]
[White "Van Groning, Christian"]
[Black "Kool, Jesper"]
[Result "0-1"]
[TimeControl "90 minutes + 30 seconds"]
[WhiteElo "1778"]
[BlackElo "1823"]

1. e4 {[%clk 01:30:58]} {[%emt 00:00:02]} c5 {[%clk 01:30:57]} {[%emt
00:00:04]} 2. Nf3 {[%clk 01:31:24]} {[%emt 00:00:04]} e6 {[%clk 01:31:23]}
{[%emt 00:00:04]} 3. Nc3 {[%clk 01:31:47]} {[%emt 00:00:07]} a6 {[%clk
01:31:47]} {[%emt 00:00:06]} 4. d4 {[%clk 01:31:37]} {[%emt 00:00:41]} cxd4
{[%clk 01:32:12]} {[%emt 00:00:04]} 5. Nxd4 {[%clk 01:32:01]} {[%emt 00:00:05]}
Qc7 {[%clk 01:32:21]} {[%emt 00:00:21]} 6. Bd3 {[%clk 01:31:56]} {[%emt
00:00:36]} Nf6 {[%clk 01:32:26]} {[%emt 00:00:25]} 7. Bg5 {[%clk 01:31:58]}
{[%emt 00:00:28]} Be7 {[%clk 01:32:37]} {[%emt 00:00:19]} 8. Qe2 {[%clk
01:31:50]} {[%emt 00:00:38]} d6 {[%clk 01:32:54]} {[%emt 00:00:13]} 9. h3
{[%clk 01:31:12]} {[%emt 00:01:08]} Nc6 {[%clk 01:32:35]} {[%emt 00:00:49]} 10.
Nxc6 {[%clk 01:31:20]} {[%emt 00:00:22]} bxc6 {[%clk 01:32:52]} {[%emt
00:00:13]} 11. O-O {[%clk 01:31:18]} {[%emt 00:00:32]} d5 {[%clk 01:29:13]}
{[%emt 00:04:09]} 12. exd5 {[%clk 01:30:35]} {[%emt 00:01:12]} cxd5 {[%clk
01:29:15]} {[%emt 00:00:28]} 13. Bxf6 {[%clk 01:30:55]} {[%emt 00:00:10]} gxf6
{[%clk 01:28:59]} {[%emt 00:00:46]} 14. Rfe1 {[%clk 01:31:06]} {[%emt
00:00:16]} Bb7 {[%clk 01:28:13]} {[%emt 00:01:19]} 15. Qh5 {[%clk 01:30:14]}
{[%emt 00:01:21]} O-O-O {[%clk 01:18:43]} {[%emt 00:10:02]} 16. Qxf7 {[%clk
01:29:09]} {[%emt 00:01:34]} e5 {[%clk 01:18:59]} {[%emt 00:00:14]} 17. Bf5+
{[%clk 01:27:27]} {[%emt 00:02:12]} Kb8 {[%clk 01:18:41]} {[%emt 00:00:48]} 18.
Rad1 {[%clk 01:24:58]} {[%emt 00:02:58]} d4 {[%clk 01:18:03]} {[%emt 00:01:09]}
19. Ne4 {[%clk 01:25:08]} {[%emt 00:00:20]} Rdf8 {[%clk 01:17:10]} {[%emt
00:01:23]} 20. Qe6 {[%clk 01:20:58]} {[%emt 00:04:37]} Rhg8 {[%clk 01:11:12]}
{[%emt 00:06:31]} 21. f3 {[%clk 01:17:46]} {[%emt 00:03:40]} Qxc2 {[%clk
01:07:49]} {[%emt 00:03:55]} 22. Rd2 {[%clk 01:16:01]} {[%emt 00:02:14]} Qc7
{[%clk 00:58:34]} {[%emt 00:09:39]} 23. Rd3 {[%clk 01:13:57]} {[%emt 00:02:40]}
Bb4 {[%clk 00:52:33]} {[%emt 00:06:31]} 24. Re2 {[%clk 01:13:06]} {[%emt
00:01:12]} Qc1+ {[%clk 00:50:50]} {[%emt 00:02:23]} 25. Kf2 {[%clk 01:06:26]}
{[%emt 00:07:09]} Qc6 {[%clk 00:32:56]} {[%emt 00:18:22]} 26. Qxc6 {[%clk
01:04:45]} {[%emt 00:02:13]} Bxc6 {[%clk 00:32:04]} {[%emt 00:01:23]} 27. Rb3
{[%clk 01:05:11]} {[%emt 00:00:04]} a5 {[%clk 00:32:22]} {[%emt 00:00:12]} 28.
Be6 {[%clk 01:05:29]} {[%emt 00:00:10]} Rg7 {[%clk 00:32:24]} {[%emt 00:00:30]}
29. Bc4 {[%clk 00:59:26]} {[%emt 00:06:30]} Ba4 {[%clk 00:31:59]} {[%emt
00:00:58]} 30. Rd3 {[%clk 00:59:45]} {[%emt 00:00:10]} f5 {[%clk 00:32:17]}
{[%emt 00:00:13]} 31. Nd2 {[%clk 00:59:24]} {[%emt 00:00:51]} e4 {[%clk
00:32:36]} {[%emt 00:00:11]} 0-1